bitfinex/quotes_ETHUSD_20250807
["timestamp","ask_amount","ask_price","bid_price","bid_amount"]
[1754609609442,0.4566,3898.1,3897.8,18.06586126]
[1754609609615,0.4566,3898.1,3897.8,18.51156126]
[1754609609968,0.128,3898.2,3897.8,18.51156126]
[1754609609969,0.128,3898.2,3897.9,3.01117201]
[1754609610146,0.128,3898.2,3898.0,0.00524923]
[1754609610315,0.128,3898.2,3897.9,3.01117201]
[1754609610639,0.128,3898.2,3898.0,0.4457]
[1754609610818,0.128,3898.2,3897.8,18.06585449]
[1754609610819,0.5846,3898.2,3897.8,18.06585449]
[1754609611137,0.5846,3898.2,3897.9,0.4457]
[1754609611338,0.4566,3898.1,3897.8,15.50132326]
[1754609611510,0.4566,3898.0,3897.8,15.50132326]
[1754609611840,0.128,3898.2,3897.9,0.4457]
[1754609612039,0.128,3898.2,3897.8,14.12786606]
[1754609612241,0.128,3898.2,3898.0,0.4457]
[1754609612447,0.128,3898.2,3898.0,4.3827]
[1754609612942,0.4566,3898.1,3898.0,3.937]
[1754609613441,0.4566,3898.1,3897.8,11.56232326]
[1754609613737,0.4566,3898.0,3897.8,15.49832326]
[1754609613960,0.4566,3897.9,3897.8,15.49832326]
[1754609614414,0.4458,3898.3,3897.8,0.1908164]
[1754609614619,0.128,3897.9,3897.8,0.1908164]
[1754609614821,0.5846,3897.9,3897.8,0.1908164]
[1754609615859,0.128,3897.9,3897.8,0.1908164]
[1754609616021,0.128,3897.9,3897.8,0.6365164]
[1754609617155,0.128,3897.9,3897.8,0.1908164]
[1754609617322,0.5846,3897.9,3897.8,0.1908164]
[1754609618060,0.128,3897.9,3897.8,0.1908164]
[1754609618223,4.3926,3898.5,3897.9,2.56543905]
[1754609618423,0.128,3898.3,3898.0,0.4457]
[1754609618644,0.128,3898.3,3898.0,3.934]
[1754609618844,0.128,3898.3,3898.1,0.4457]
[1754609619761,0.5846,3898.3,3898.1,0.4457]
[1754609620121,0.128,3898.3,3898.2,0.4457]
[1754609620317,0.4566,3898.6,3898.2,3.01098654]
[1754609620550,0.128,3898.4,3898.2,6.50353008]
[1754609620857,0.128,3898.4,3898.3,0.4457]
[1754609621565,0.5846,3898.4,3898.2,3.933]
[1754609621734,0.5846,3898.4,3898.2,4.3787]
[1754609622077,0.128,3898.4,3898.3,2.56522073]
[1754609622295,0.002,3898.7,3898.6,2.56502334]
[1754609622582,0.002,3898.7,3898.6,6.49702334]
[1754609622735,0.002,3898.7,3898.6,6.62502334]
[1754609622934,0.002,3898.7,3898.6,7.25312334]
[1754609623842,0.002,3898.7,3898.6,10.25312334]
[1754609624983,0.002,3898.7,3898.6,10.07072334]
[1754609625562,0.002,3898.7,3898.6,6.13872334]
[1754609625758,0.4733,3898.7,3898.6,9.62502334]
[1754609626249,0.002,3898.7,3898.6,5.69302334]
[1754609626444,0.5113,3898.9,3898.8,2.56489176]
[1754609626445,0.04,3898.9,3898.8,2.56489176]
[1754609626660,0.04,3898.9,3898.8,6.49589176]
[1754609626867,0.04,3898.9,3898.8,3.15979176]
[1754609627067,0.04,3898.9,3898.8,7.09179176]
[1754609627565,0.04,3898.9,3898.8,7.82419176]
[1754609627965,0.04,3898.9,3898.8,7.64179176]
[1754609629839,0.04,3898.9,3898.8,7.82419176]
[1754609631040,0.04,3898.9,3898.8,7.64179176]
[1754609633183,0.04,3898.9,3898.8,7.17489176]
[1754609633567,0.04,3898.9,3898.8,7.64179176]
[1754609635169,0.002,3899.4,3899.3,6.11456287]
[1754609635474,0.002,3899.4,3899.3,3.932]
[1754609635849,0.002,3899.4,3899.3,6.96869072]
[1754609636076,0.002,3899.5,3899.4,3.1144971]
[1754609636289,0.002,3899.5,3899.4,3.7690233]
[1754609637491,0.002,3899.5,3899.4,3.5866233]
[1754609637857,0.002,3899.5,3899.4,3.5813971]
[1754609638893,0.002,3899.5,3899.4,3.5866233]
[1754609639685,0.002,3899.5,3899.4,6.5866233]
[1754609639862,0.002,3899.5,3899.4,6.7637971]
[1754609640682,0.002,3899.5,3899.4,6.5813971]
[1754609640999,0.002,3899.6,3899.5,5.56443133]
[1754609641172,0.002,3900.1,3899.8,3.11423406]
[1754609641372,0.002,3900.1,3899.8,7.24669752]
[1754609641572,0.002,3900.1,3899.8,7.70837789]
[1754609641774,0.002,3900.1,3899.8,0.19624383]
[1754609641775,0.5133,3899.9,3899.8,0.19624383]
[1754609642095,0.5133,3899.9,3899.8,6.49523406]
[1754609643296,0.5133,3899.9,3899.8,3.931]
[1754609643488,0.5133,3899.9,3899.8,6.49523406]
[1754609644194,0.5133,3899.9,3899.8,4.12772501]
[1754609645090,3.63426831,3899.9,3899.8,0.19672501]
[1754609645294,2.56425185,3899.8,3899.5,3.929]
[1754609645593,0.128,3899.6,3899.4,3.93]
[1754609645792,0.9001,3899.5,3899.4,3.93]
[1754609646088,0.4713,3899.5,3899.4,3.93]
[1754609646288,0.4713,3899.5,3899.4,3.9352262]
[1754609646490,0.4713,3899.5,3899.4,3.93]
[1754609646692,2.5645078,3899.4,3899.1,0.128]
[1754609646884,3.46472534,3899.3,3898.9,0.128]
[1754609647085,2.69262534,3899.3,3898.9,3.929]
[1754609647393,3.46473042,3899.2,3898.9,3.929]
[1754609647700,0.4713,3899.6,3899.0,3.929]
[1754609647996,0.4713,3899.6,3899.0,6.49371571]
[1754609648185,0.4713,3899.6,3899.1,2.56469213]
[1754609648500,0.4713,3899.6,3899.0,3.929]
[1754609648501,0.128,3899.5,3899.2,6.50681667]
[1754609648663,0.5993,3899.5,3899.3,6.50155731]
[1754609648864,0.5993,3899.5,3899.3,6.50153526]
[1754609649195,0.4713,3899.4,3899.3,6.50153526]
[1754609649597,0.4713,3899.4,3899.3,3.937]
[1754609649893,0.4713,3899.4,3899.3,6.50156287]
[1754609650094,0.4713,3899.4,3899.3,3.937]
[1754609651394,0.4713,3899.4,3899.3,6.50156287]
[1754609651896,0.4713,3899.8,3899.3,3.937]
[1754609652072,0.4713,3899.7,3899.4,11.96640686]
[1754609652273,0.042,3899.9,3899.5,3.935]
[1754609652473,0.4713,3899.6,3899.5,3.935]
[1754609653801,0.4713,3899.6,3899.5,6.49943133]
[1754609653988,0.042,3899.9,3899.5,6.49943133]
[1754609653989,0.45,3899.8,3899.7,2.56429981]
[1754609654182,0.45,3899.8,3899.7,3.934]
[1754609654513,0.45,3899.8,3899.7,6.49829981]
[1754609654676,0.45,3899.8,3899.7,15.59156503]
[1754609655104,0.042,3899.9,3899.8,2.56423406]
[1754609655611,0.042,3899.9,3899.8,3.03365369]
[1754609655813,0.042,3899.9,3899.8,3.22475854]
[1754609656800,0.042,3899.9,3899.8,14.58922972]
[1754609656989,0.042,3899.9,3899.8,14.58401009]
[1754609657196,0.042,3899.9,3899.8,17.58401009]
[1754609657381,0.042,3899.9,3899.8,18.26201009]
[1754609658202,0.042,3899.9,3899.8,6.34753891]
[1754609658408,0.492,3899.9,3899.8,9.81533891]
[1754609659616,0.042,3899.9,3899.8,9.81433891]
[1754609659789,0.042,3899.9,3899.8,10.27853891]
[1754609663412,0.002,3901.2,3901.0,3.11344527]
[1754609663611,0.04,3901.9,3901.8,2.56291967]
[1754609663812,0.53038282,3902.6,3902.5,2.56245996]
[1754609664013,0.04,3902.9,3902.8,2.56226299]
[1754609664312,0.04,3902.9,3902.8,7.06526299]
[1754609664807,0.04,3902.9,3902.8,7.52946299]
[1754609665181,0.04,3902.9,3902.8,3.02646299]
[1754609665381,0.04,3902.9,3902.8,18.42773417]
[1754609666211,0.04,3902.9,3902.8,11.55987181]
[1754609666414,3.51829734,3902.9,3902.8,0.19540063]
[1754609666616,2.56226299,3902.8,3902.7,3.955]
[1754609666785,0.9161,3902.8,3902.0,3.0]
[1754609666987,3.21023649,3902.9,3902.3,0.55]
[1754609666988,0.04,3902.9,3902.3,0.55]
[1754609667186,0.04,3902.9,3902.8,2.56226299]
[1754609667386,0.04,3902.9,3902.7,13.9267577]
[1754609667620,0.49,3902.9,3902.8,6.52226299]
[1754609668091,0.04,3902.9,3902.8,6.52226299]
[1754609668290,0.04,3902.9,3902.8,6.98646299]
[1754609669390,0.04,3902.9,3902.8,4.4242]
[1754609669689,0.49,3902.9,3902.0,0.19476742]
[1754609669913,2.56226987,3902.8,3902.2,3.0]
[1754609670133,0.45,3902.7,3902.0,3.19527679]
[1754609670428,3.01233518,3902.7,3902.2,3.0]
[1754609670719,3.47851601,3902.6,3901.9,0.55]
[1754609670911,0.45,3902.5,3902.0,3.958]
[1754609671216,0.9161,3902.5,3902.1,3.957]
[1754609671617,0.04,3902.9,3902.1,3.957]
[1754609671822,0.45,3902.4,3902.1,3.957]
[1754609672121,3.02837536,3902.8,3902.1,3.957]
[1754609672420,0.45,3902.3,3902.2,3.956]
[1754609672816,0.45,3902.3,3902.0,2.5627705]
[1754609673016,0.45,3902.3,3902.1,3.956]
[1754609673524,0.45,3902.3,3902.1,0.128]
[1754609673823,0.45,3902.3,3902.2,3.956]
[1754609674798,0.45,3902.3,3902.1,0.128]
[1754609675001,0.4661,3902.6,3902.2,3.955]
[1754609675196,0.128,3902.7,3902.3,3.954]
[1754609675397,0.4661,3902.5,3902.3,3.954]
[1754609675633,0.45,3902.4,3902.3,3.954]
[1754609675942,3.47866475,3902.4,3902.0,0.19133355]
[1754609676104,2.56270863,3902.2,3901.8,4.081]
[1754609676307,0.9161,3902.1,3901.8,4.081]
[1754609676743,0.45,3902.0,3901.8,4.081]
[1754609677443,0.45,3901.9,3901.8,0.128]
[1754609677732,0.45,3901.9,3901.8,3.128]
[1754609677939,3.01285399,3901.9,3901.8,0.128]
[1754609678105,3.47895399,3901.9,3901.7,3.0]
[1754609678306,0.45,3901.8,3901.7,0.19149274]
[1754609678613,0.45,3901.8,3901.6,3.0]
[1754609678826,0.45,3901.7,3901.6,7.08]
[1754609679020,0.45,3901.7,3901.6,0.128]
[1754609679220,0.45,3901.7,3901.6,3.0]
[1754609679422,0.45,3901.7,3901.5,3.951]
[1754609680603,0.45,3901.6,3901.5,3.951]
[1754609681214,0.45,3901.6,3901.3,0.128]
[1754609681435,0.45,3901.5,3901.4,3.0]
[1754609682433,0.4661,3902.6,3901.5,0.55]
[1754609682648,2.56208418,3903.1,3902.3,2.56259129]
[1754609682834,2.56208418,3903.1,3902.6,11.36447118]
[1754609682835,0.578,3903.1,3902.6,11.36447118]
[1754609683003,0.578,3903.1,3902.7,0.00517198]
[1754609683204,0.578,3903.1,3902.7,0.4642]
[1754609683405,0.45,3903.5,3902.8,0.45477109]
[1754609683602,0.578,3903.5,3902.8,3.14503408]
[1754609683837,0.578,3903.5,3902.8,7.09703408]
[1754609684008,0.128,3903.5,3902.8,0.128]
[1754609684209,0.4916,3902.9,3902.8,4.08]
[1754609685072,0.4916,3902.9,3902.8,0.128]
[1754609685240,0.4916,3902.9,3902.5,3.952]
[1754609685241,0.6196,3902.9,3902.5,3.952]
[1754609685410,0.6196,3902.9,3902.5,3.951]
[1754609685739,0.4516,3902.8,3902.5,3.951]
[1754609685952,0.4516,3902.7,3902.5,3.951]
[1754609686121,0.4516,3902.6,3902.5,3.951]
[1754609686842,0.6196,3902.9,3902.5,3.951]
[1754609687146,0.4516,3902.8,3902.5,3.95617527]
[1754609687352,0.168,3902.9,3902.5,4.40577527]
[1754609687650,0.168,3902.9,3902.5,4.4006]
[1754609687831,0.4516,3902.8,3902.5,4.4006]
[1754609688146,0.04,3902.9,3902.7,2.56228423]
[1754609688350,0.04,3902.9,3902.8,2.56226299]
[1754609688650,0.04,3902.9,3902.8,3.01186299]
[1754609689248,0.04,3902.9,3902.8,6.74943334]
[1754609689433,0.13,3903.7,3903.6,2.56173788]
[1754609689434,0.002,3903.7,3903.6,2.56173788]
[1754609689747,0.002,3903.7,3903.6,6.51273788]
[1754609690154,0.04,3905.9,3903.9,0.55]
[1754609690321,0.04,3904.9,3904.7,0.128]
[1754609690516,0.4516,3904.8,3904.7,0.128]
[1754609690718,3.46875062,3904.8,3904.7,0.128]
[1754609690919,0.9078,3904.8,3904.1,3.957]
[1754609691118,0.9078,3904.8,3903.9,0.128]
[1754609691119,0.128,3904.4,3903.9,0.128]
[1754609691420,0.4516,3904.3,3903.9,4.085]
[1754609691640,0.128,3904.4,3903.9,4.085]
[1754609691831,0.4516,3904.2,3903.9,4.087]
[1754609692336,0.128,3904.4,3904.0,0.00515065]
[1754609692622,0.04,3904.9,3904.0,0.00515065]
[1754609692623,0.04,3904.9,3904.2,13.92576044]
[1754609692861,0.04,3904.9,3904.6,0.128]
[1754609693218,0.4516,3904.8,3904.6,0.128]
[1754609693627,0.4516,3904.7,3904.6,0.128]
[1754609694028,0.04,3904.9,3904.6,0.128]
[1754609694252,0.04,3904.9,3904.7,0.4496]
[1754609694434,0.04,3904.9,3904.6,2.56106256]
[1754609694435,0.04,3904.9,3904.8,4.5356]
[1754609695051,0.04,3904.9,3904.8,7.09655062]
[1754609695430,0.04,3904.9,3904.8,4.086]
[1754609695630,0.4916,3904.9,3904.8,0.128]
[1754609695842,0.4916,3904.9,3904.7,3.959]
[1754609696142,0.4516,3904.8,3904.7,3.959]
[1754609696348,0.04,3904.9,3904.7,3.959]
[1754609696661,0.04,3904.9,3904.8,0.00513829]
[1754609696847,0.04,3904.9,3904.7,3.959]
[1754609697051,0.04,3904.9,3904.8,4.8173]
[1754609697248,0.04,3904.9,3904.8,7.50625062]
[1754609697570,0.04,3904.9,3904.8,8.05625062]
[1754609698262,0.04,3904.9,3904.8,4.9473]
[1754609698436,0.04,3904.9,3904.8,4.4997]
[1754609699028,0.04,3904.9,3904.8,16.42984766]
[1754609699229,0.04,3904.9,3904.8,20.06184766]
[1754609699634,0.04,3904.9,3904.8,20.22984766]
[1754609700238,0.04,3904.9,3904.8,11.06125062]
[1754609700829,0.04,3904.9,3904.8,6.64765062]
[1754609701169,0.04,3904.9,3904.8,11.06125062]
[1754609701936,0.04,3904.9,3904.8,11.06025062]
[1754609702136,0.04,3904.9,3904.8,4.0867]
[1754609702357,0.4916,3904.9,3904.6,3.962]
[1754609702772,3.01255913,3904.8,3904.0,0.4496]
[1754609702957,2.56129092,3904.3,3903.5,0.4496]
[1754609703165,0.4516,3904.2,3903.7,3.966]
[1754609703334,2.56129092,3904.3,3903.7,3.966]
[1754609703335,0.4516,3904.1,3904.0,0.128]
[1754609705281,0.4516,3904.2,3904.0,4.094]
[1754609705461,0.4516,3904.1,3904.0,0.128]
[1754609705665,0.4516,3904.1,3904.0,4.095]
[1754609705983,0.4516,3904.4,3904.0,4.095]
[1754609706207,0.128,3904.5,3904.0,4.095]
[1754609706410,3.01281615,3904.4,3904.0,0.128]
[1754609706690,0.4516,3904.3,3904.1,3.967]
[1754609707051,0.4516,3904.2,3904.1,3.967]
[1754609707453,0.4516,3904.2,3904.1,3.965]
[1754609708496,0.4516,3904.2,3904.0,0.128]
[1754609708797,0.9078,3904.2,3904.0,0.128]
[1754609709153,2.56121766,3904.4,3903.8,3.964]
[1754609709484,0.128,3904.5,3903.9,0.128]
[1754609709485,0.4516,3904.1,3903.9,0.128]
[1754609709682,0.4516,3904.0,3903.9,0.128]
[1754609709868,0.4516,3904.4,3903.9,2.68952254]
[1754609710076,0.4516,3904.3,3904.0,3.962]
[1754609710278,0.128,3904.5,3904.0,3.962]
[1754609710589,0.4516,3904.2,3904.0,3.962]
[1754609710881,0.4516,3904.1,3904.0,3.962]
[1754609711813,0.128,3904.5,3904.0,3.962]
[1754609712113,0.04,3904.9,3904.3,2.56121394]
[1754609712278,0.4916,3904.9,3904.8,0.128]
[1754609712479,0.4916,3904.9,3904.6,6.65106068]
[1754609712819,0.4516,3904.8,3904.6,6.65106068]
[1754609713005,0.4516,3904.8,3904.6,4.09]
[1754609713924,0.04,3904.9,3904.6,0.128]
[1754609714218,0.4934,3904.7,3904.5,0.128]
[1754609714419,0.4934,3904.6,3904.5,0.128]
[1754609714721,0.4934,3904.6,3904.5,4.089]
[1754609715213,0.04,3904.9,3904.7,2.56100765]
[1754609715517,0.04,3904.9,3904.8,6.52195062]
[1754609715822,0.04,3904.9,3904.8,7.63305062]
[1754609716494,0.042,3904.9,3904.8,10.81545062]
[1754609716693,0.042,3904.9,3904.8,3.128]
[1754609716895,0.042,3904.9,3904.8,9.96175062]
[1754609717313,0.042,3904.9,3904.8,10.39485062]
[1754609718579,0.042,3904.9,3904.8,6.00175062]
[1754609718805,0.5354,3904.9,3904.8,9.95975062]
[1754609719222,0.042,3904.9,3904.8,9.95975062]
[1754609719795,0.5354,3904.9,3904.8,6.00175062]
[1754609720088,0.5354,3904.9,3904.8,3.957]
[1754609720293,0.042,3904.9,3904.8,3.957]
[1754609720511,0.5354,3904.9,3904.6,0.128]
[1754609720706,0.4934,3904.8,3904.7,3.957]
[1754609720913,0.4934,3904.8,3904.7,3.0]
[1754609721096,0.956,3904.8,3904.6,0.128]
[1754609721291,0.4934,3904.8,3904.3,2.56126789]
[1754609721491,0.6214,3904.7,3904.4,2.56118767]
[1754609721894,0.4934,3904.6,3904.1,0.128]
[1754609722119,0.128,3904.7,3904.4,2.56115242]
[1754609722334,0.4934,3904.6,3904.2,3.956]
[1754609722490,0.4934,3904.5,3904.1,0.128]
[1754609722697,0.4934,3904.4,3904.1,0.128]
[1754609723031,0.956,3904.4,3904.0,3.129]
[1754609723228,0.4626,3904.4,3904.0,3.129]
[1754609723534,0.4934,3904.3,3904.0,3.129]
[1754609723720,0.4934,3904.3,3904.0,5.69046422]
[1754609723919,0.128,3904.5,3904.0,5.69046422]
[1754609724122,0.4934,3904.2,3904.1,2.56140979]
[1754609724299,0.4934,3904.2,3904.0,5.69046143]
[1754609724500,0.4934,3904.1,3904.0,5.69046143]
[1754609726535,0.4934,3904.1,3904.0,0.001]
[1754609726734,0.4934,3904.1,3904.0,3.956]
[1754609728644,0.4934,3904.1,3904.0,0.001]
[1754609729027,3.51740979,3904.1,3904.0,0.001]
[1754609729203,4.25328061,3904.1,3904.0,0.001]
[1754609730426,18.75328061,3904.1,3904.0,0.001]
[1754609732247,19.2614544,3904.1,3904.0,0.001]
[1754609733753,4.7614544,3904.1,3904.0,0.001]
[1754609733929,4.25328061,3904.1,3904.0,0.001]
[1754609734136,18.75328061,3904.1,3904.0,0.001]
[1754609734335,19.2614544,3904.1,3904.0,0.001]
[1754609736556,2.56193477,3903.3,3903.2,0.001]
[1754609736859,6.63993477,3903.3,3903.2,0.001]
[1754609737059,7.13333477,3903.3,3903.2,0.001]
[1754609737828,4.5714,3903.3,3903.2,0.001]
[1754609738660,4.078,3903.3,3903.2,0.4341]
[1754609738863,3.95,3903.3,3903.2,0.4341]
[1754609739062,0.128,3903.5,3903.2,0.4341]
[1754609739255,0.128,3903.5,3903.2,2.56295462]
[1754609739565,3.949,3903.7,3903.3,0.4331]
[1754609739860,0.128,3903.6,3903.4,0.4331]
[1754609740162,0.128,3903.6,3903.5,0.4331]
[1754609741961,0.128,3903.6,3903.2,0.4341]
[1754609742157,0.128,3903.6,3903.3,0.4331]
[1754609742688,0.4934,3903.5,3903.2,0.001]
[1754609743170,0.128,3903.6,3903.2,0.001]
[1754609743540,0.128,3903.6,3903.3,0.4499]
[1754609744064,0.128,3903.6,3903.2,2.56299157]
[1754609744238,0.128,3903.6,3903.3,0.4499]
[1754609744737,0.4635,3903.5,3903.2,0.001]
[1754609744973,0.128,3903.6,3903.3,0.4499]
[1754609745266,0.5915,3903.6,3903.3,0.4499]
[1754609745473,0.128,3903.6,3903.3,0.4499]
[1754609745657,0.4635,3903.5,3903.2,0.001]
[1754609746161,0.4635,3903.4,3903.2,0.001]
[1754609746668,0.4635,3903.3,3903.2,0.001]
[1754609746841,0.4635,3903.4,3903.2,0.001]
[1754609747236,2.56187257,3903.4,3903.2,0.001]
[1754609747470,0.4635,3903.3,3903.2,0.001]
[1754609747868,0.4635,3903.5,3903.2,0.001]
[1754609748371,0.4635,3903.4,3903.2,0.001]
[1754609748677,0.128,3903.3,3903.2,0.001]
[1754609749098,4.5335,3903.3,3903.2,0.001]
[1754609750697,7.84218705,3903.3,3903.2,0.001]
[1754609750893,7.81016287,3903.3,3903.2,0.001]
[1754609752875,22.31016287,3903.3,3903.2,0.001]
[1754609755607,22.82147661,3903.3,3903.2,0.001]
[1754609755905,8.32147661,3903.3,3903.2,0.001]
[1754609756286,22.82147661,3903.3,3903.2,0.001]
[1754609756579,25.82147661,3903.3,3903.2,0.001]
[1754609758005,25.82147661,3903.3,3903.2,1e-08]
[1754609759302,11.32147661,3903.3,3903.2,1e-08]
[1754609759911,25.82147661,3903.3,3903.2,1e-08]
[1754609761607,25.39027661,3903.3,3903.2,1e-08]
[1754609762277,21.92677661,3903.3,3903.2,1e-08]
[1754609762478,10.42677661,3903.3,3903.2,0.44990001]
[1754609762978,24.92677661,3903.3,3903.2,0.44990001]
[1754609763177,10.42677661,3903.3,3903.2,0.44990001]
[1754609763885,0.63931374,3903.3,3903.2,0.44990001]
[1754609764091,0.128,3903.3,3903.2,0.44990001]
[1754609764291,0.128,3903.3,3903.2,0.63230001]
[1754609764978,0.128,3903.3,3903.2,0.44990001]
[1754609765614,3.15343477,3903.3,3903.2,1e-08]
[1754609765987,4.11886087,3903.3,3903.2,1e-08]
[1754609766212,4.63000631,3903.3,3903.2,1e-08]
[1754609766409,4.11886087,3903.3,3903.2,1e-08]
[1754609766715,4.63002127,3903.3,3903.2,1e-08]
[1754609766911,3.65536087,3903.3,3903.2,1e-08]
[1754609767113,0.128,3903.3,3903.2,0.44990001]
[1754609768283,4.067,3903.4,3903.2,0.44990001]
[1754609768490,4.067,3903.4,3903.2,0.63230001]
[1754609768790,4.067,3903.4,3903.2,1e-08]
[1754609768991,4.067,3903.4,3903.3,0.4499]
[1754609773425,4.5305,3903.4,3903.2,1e-08]
[1754609773613,4.067,3903.4,3903.2,1e-08]
[1754609774114,4.067,3903.4,3903.3,0.4338]
[1754609775997,0.128,3903.4,3903.3,3.47782374]
[1754609776199,3.941,3904.0,3903.9,2.56154102]
[1754609776430,3.941,3904.0,3903.9,0.6162]
[1754609776629,4.3934,3904.0,3903.7,0.128]
[1754609776832,4.3934,3904.0,3903.7,0.4338]
[1754609777004,3.941,3904.0,3903.8,0.4338]
[1754609777331,3.941,3904.0,3903.9,0.4338]
[1754609779415,3.941,3904.0,3903.6,0.4338]
[1754609779618,3.941,3904.0,3903.7,0.4338]
[1754609779925,3.941,3904.0,3903.8,0.4338]
[1754609780507,4.3934,3904.0,3903.8,0.4338]
[1754609781005,3.941,3904.0,3903.9,0.4338]
[1754609782641,4.3934,3904.0,3903.5,2.68978907]
[1754609782838,0.4524,3903.9,3903.5,0.128]
[1754609783017,3.936,3903.8,3903.5,0.128]
[1754609783212,4.3884,3903.8,3903.5,0.5618]
[1754609783417,4.3884,3903.8,3903.6,0.4338]
[1754609783746,3.936,3903.8,3903.6,0.4338]
[1754609784615,3.936,3903.8,3903.3,14.20161014]
[1754609784616,0.4524,3903.7,3903.3,11.63995451]
[1754609784822,0.4524,3903.7,3903.4,2.56184984]
[1754609785146,4.064,3903.8,3903.4,0.4338]
[1754609785348,4.064,3903.8,3903.5,2.9956035]
[1754609785546,4.064,3903.8,3903.7,9.07808149]
[1754609785705,4.064,3903.8,3903.7,9.51188149]
[1754609785906,0.128,3903.8,3903.7,9.51188149]
[1754609786106,3.937,3904.0,3903.7,9.51188149]
[1754609786348,3.937,3904.0,3903.8,0.4338]
[1754609786564,3.937,3904.0,3903.8,0.19240878]
[1754609786769,4.3894,3904.0,3903.7,9.20608149]
[1754609786935,0.4524,3903.9,3903.7,9.20608149]
[1754609787140,0.4524,3903.9,3903.7,9.07808149]
[1754609787960,0.4524,3903.8,3903.7,9.07808149]
[1754609789757,0.4524,3903.8,3903.6,9.07808149]
[1754609789971,0.4524,3903.7,3903.6,9.07808149]
[1754609790444,4.3854,3903.7,3903.4,4.398]
[1754609790761,0.4524,3903.6,3903.4,4.27]
[1754609791432,0.4524,3903.6,3903.4,6.83185588]
[1754609791634,3.933,3903.7,3903.4,7.26565588]
[1754609791964,3.933,3903.7,3903.5,2.99558938]
[1754609792462,3.933,3903.7,3903.3,9.07808149]
[1754609792658,0.4524,3903.6,3903.3,9.07808149]
[1754609793068,2.68986269,3903.5,3903.2,1e-08]
[1754609793234,6.49388763,3903.4,3903.2,1e-08]
[1754609793434,6.94628763,3903.4,3903.2,1e-08]
[1754609793674,3.01433477,3903.3,3903.2,1e-08]
[1754609793837,4.32298825,3903.3,3903.2,1e-08]
[1754609794944,4.35501243,3903.3,3903.2,1e-08]
[1754609795175,4.32298825,3903.3,3903.2,1e-08]
[1754609795475,4.83499875,3903.3,3903.2,1e-08]
[1754609796670,4.86702293,3903.3,3903.2,1e-08]
[1754609797245,4.83499875,3903.3,3903.2,1e-08]
[1754609797849,4.83499875,3903.3,3903.1,0.001]
[1754609797850,2.5620004,3903.2,3903.1,1e-08]
[1754609798053,6.11219734,3902.9,3902.8,1e-08]
[1754609798254,10.68320784,3902.9,3902.8,1e-08]
[1754609798453,11.56580784,3902.9,3902.8,1e-08]
[1754609799085,11.01580784,3902.9,3902.8,1e-08]
[1754609807126,10.58560784,3902.9,3902.8,1e-08]
[1754609807437,12.69527706,3902.9,3902.8,1e-08]
[1754609807624,13.15657706,3902.9,3902.8,1e-08]
[1754609808801,12.69527706,3902.9,3902.8,1e-08]
[1754609809827,13.15657706,3902.9,3902.8,1e-08]
[1754609814647,13.70657706,3902.9,3902.8,1e-08]
[1754609817353,13.25357706,3902.9,3902.8,1e-08]
[1754609817726,13.71487706,3902.9,3902.8,1e-08]
[1754609818137,28.21487706,3902.9,3902.8,1e-08]
[1754609820169,3.11245996,3902.5,3902.4,1e-08]
[1754609820466,11.06197451,3902.5,3902.4,1e-08]
[1754609820762,12.46395427,3902.5,3902.4,1e-08]
[1754609820951,5.56265696,3902.2,3902.1,1e-08]
[1754609821155,10.12466746,3902.2,3902.1,1e-08]
[1754609821328,11.99708537,3902.2,3902.1,1e-08]
[1754609821538,28.63567254,3902.2,3902.1,1e-08]
[1754609826165,18.69031558,3902.2,3902.1,0.46090001]
[1754609826465,18.69031558,3902.2,3902.1,0.64330001]
[1754609826466,6.23889767,3902.2,3902.1,0.64330001]
[1754609826630,5.58149767,3902.2,3902.1,0.64330001]
[1754609826837,4.97849767,3902.2,3902.1,0.64330001]
[1754609827035,4.75019767,3902.2,3902.1,0.64330001]
[1754609827682,4.75019767,3902.2,3902.1,3.20602264]
[1754609828039,4.75019767,3902.2,3902.1,0.64330001]
[1754609828277,4.75019767,3902.2,3902.1,3.20602264]
[1754609828456,4.75019767,3902.2,3902.1,0.64330001]
[1754609828843,4.75019767,3902.2,3902.1,0.18240001]
[1754609829875,7.31285463,3902.2,3902.1,1e-08]
[1754609830345,22.27355463,3902.2,3902.1,1e-08]
[1754609830751,22.73485463,3902.2,3902.1,1e-08]
[1754609832841,2.56298536,3901.7,3901.6,0.001]
[1754609833041,7.12457395,3901.7,3901.6,0.001]
[1754609833262,8.90239266,3901.7,3901.6,0.001]
[1754609833463,24.32439266,3901.7,3901.6,0.001]
[1754609834770,24.32439266,3901.7,3901.6,1e-08]
[1754609835150,3.11305105,3901.6,3901.5,1e-08]
[1754609835380,9.58994114,3901.6,3901.5,1e-08]
[1754609837443,11.37856692,3901.6,3901.5,1e-08]
[1754609838641,11.88670961,3901.6,3901.5,1e-08]
[1754609838841,26.38670961,3901.6,3901.5,1e-08]
[1754609843856,24.91510961,3901.6,3901.5,1e-08]
[1754609844181,29.43840961,3901.6,3901.5,1e-08]
[1754609844380,29.88570961,3901.6,3901.5,1e-08]
[1754609844546,28.83610961,3901.6,3901.5,1e-08]
[1754609844745,26.40881952,3901.6,3901.5,1e-08]